Cogmind - Beta 15 @@@ ROGUE MODE // 2025.08.02 @ 11:58:29 Player: beans Result: Destroyed by AW-DUJ(j) with Overtuned Pulse Rifle Performance ------------- Evolutions (0) 0 Regions Visited (3) 600 Robots Destroyed (18) 90 Value Destroyed (812) 812 Prototype IDs (4) 80 Alien Tech Used (0) 0 Bonus (800) 800 TOTAL SCORE: 2382 Bonus ------- Registered with UFD 300 Met Optimus in HQ 500 Cogmind --------- Core Integrity 0/250 Matter 545/550 Energy 100/100 System Corruption 0% Temperature Cool (41) Movement Core (200) Ox3 Location -9/Scraptown Parts ------- > --- POWER (1) -------- (None) > --- PROPULSION (2) --- (None) > --- UTILITY (2) ------ Matter Compressor Makeshift Salvage Targeting Computer > --- WEAPON (2) ------- Hypervelocity Coil Gun > --- INVENTORY (5) ---- Enhanced Optical Array Helical Railgun Missile Launcher Peak State ------------ > --- POWER ------------ Graviton Reactor > --- PROPULSION ------- Armored Treads > --- UTILITY ---------- Matter Compressor Makeshift Salvage Targeting Computer > --- WEAPON ----------- Helical Railgun Helical Railgun > --- INVENTORY -------- Enhanced Optical Array Makeshift Salvage Targeting Computer Proton Cannon Hypervelocity Coil Gun Missile Launcher [Rating: 41] Favorites ----------- Power Light Ion Engine Engine Light Ion Engine Reactor Graviton Reactor Propulsion Light Treads Treads Light Treads Utility Matter Compressor Storage Matter Compressor Processor Makeshift Salvage Targeting Computer Weapon Advanced Assault Cannon Ballistic Gun Assault Rifle Ballistic Cannon Advanced Assault Cannon Special Weapon CPS Tube Build | -11 -10 -10 -9 ------- Run | Yrd Mat Sub Scr Slots Evolved . | . . . . Power . | . . . . Propulsion . | . . . . Utility . | . . . . Weapon . | . . . . Parts Attached 17 | 3 . . 14 Power 2 | . . . 2 Engine 1 | . . . 1 Core . | . . . . Reactor 1 | . . . 1 Propulsion 4 | 2 . . 2 Treads 4 | 2 . . 2 Leg . | . . . . Wheel . | . . . . Hover . | . . . . Flight . | . . . . Utility 2 | . . . 2 Device . | . . . . Storage 1 | . . . 1 Processor 1 | . . . 1 Hackware . | . . . . Protection . | . . . . Artifact . | . . . . Weapon 9 | 1 . . 8 Energy Gun . | . . . . Energy Cannon . | . . . . Ballistic Gun 5 | 1 . . 4 Ballistic Cannon 2 | . . . 2 Launcher . | . . . . Special Weapon 2 | . . . 2 Impact Weapon . | . . . . Slashing Weapon . | . . . . Piercing Weapon . | . . . . Special Melee Weapon . | . . . . Unidentified Prototypes 4 | . . . 4 Parts Lost 6 | . . . 6 Power 1 | . . . 1 Propulsion 2 | . . . 2 Utility . | . . . . Weapon 3 | . . . 3 Highest Loss Streak 2 | . . . 2 To Critical Strikes . | . . . . Average Backups 3 | 1 1 1 3 Power . | . 1 1 . Propulsion . | . . . . Utility . | . . . 1 Weapon 1 | . . . 2 Tool/Special . | . . . . Unused Backups 8 | . . . 8 Power . | . . . . Propulsion . | . . . . Utility 4 | . . . 4 Weapon 3 | . . . 3 Tool/Special 1 | . . . 1 Average Slot Usage (%) 65 | . 42 42 73 Engine 5 | . . . 7 Treads 26 | . 28 28 25 Storage 9 | . . . 12 Processor 2 | . . . 3 Ballistic Gun 8 | . 14 14 6 Ballistic Cannon 10 | . . . 14 Special Weapon 2 | . . . 2 Peak Build Rating 41 | 3 3 3 41 Average Rating 12 | 2 3 3 15 On Entrance 2 | . 3 3 3 Naked Turns . | . . . . Heaviest Build 33 | 2 2 2 33 Greatest Support 42 | 40 40 40 42 Greatest Overweight (x) 5 | . . . 5 Average Overweight (x) . | . . . . Largest Inventory Capacity 5 | 5 5 5 5 Average Capacity 5 | 5 5 5 5 Most Carried 5 | 3 1 1 5 Average Carried 3 | . 1 1 3 Final Capacity 5 | 5 5 5 5 Final Carried 3 | 1 1 1 3 Class Distribution -------------------- 98% | Mutant Dominant Class ---------------- Mutant | -10/Materials Mutant | -10/Subcaves Mutant | -9/Scraptown Resources | -11 -10 -10 -9 ----------- Run | Yrd Mat Sub Scr Matter Collected 1177 | 230 . . 947 Remotely . | . . . . Salvage Created 1007 | . . . 1007 Parts 52 | . . . 52 Haulers Intercepted . | . . . . Recyclers Shooed . | . . . . Parts Field Recycled . | . . . . Retrieved Matter . | . . . . Parts Self-Destructed 6 | . . 6 . Prevented . | . . . . Kills | -11 -10 -10 -9 ------- Run | Yrd Mat Sub Scr Combat Hostiles Destroyed 18 | . . . 18 Guns 6 | . . . 6 Cannons 12 | . . . 12 Classes Destroyed 4 | . . . 4 Federalist 2 | . . . 2 Explorer 2 | . . . 2 Guru 2 | . . . 2 Scrapper 12 | . . . 12 Best Kill Streak 3 | . . . 3 Combat Bots Only 3 | . . . 3 Max Kills in Single Turn 2 | . . . 2 Gunslinging . | . . . . Exploded . | . . . . Melee . | . . . . Uniques/NPCs Destroyed . | . . . . Combat | -11 -10 -10 -9 -------- Run | Yrd Mat Sub Scr Hostile Shots Fired 73 | . . . 73 Missed 14 | . . . 14 Hits 59 | . . . 59 Projectile 59 | . . . 59 Critical Strikes 7 | . . . 7 Part Disruptions 1 | . . . 1 Damage Taken 1049 | . . . 1049 Core 257 | . . . 257 Absorbed by Shields . | . . . . Core Remaining (%) 100 | 100 . . . Volleys Fired 54 | . 3 . 51 Largest 2 | . 1 . 2 Hottest 80 | . 20 . 80 Shots Fired 95 | . 3 . 92 Gun 35 | . 3 . 32 Cannon 58 | . . . 58 Launcher . | . . . . Special 2 | . . . 2 Kinetic 93 | . 3 . 90 Thermal . | . . . . Explosive . | . . . . Electromagnetic . | . . . . Robot Hit Streak 6 | . . . 6 Robot Miss Streak 3 | . 3 . 3 Penetration Max 1 | . . . 1 Secondary Targets 1 | . . . 1 Max Gunslinging Chain 1 | . . . 1 Shots Hit Robots 57 | . . . 57 Core Hits 24 | . . . 24 Critical Kills . | . . . . Critical Parts Destroyed . | . . . . Critical Strikes 4 | . . . 4 Blast 4 | . . . 4 Melee Attacks . | . . . . Impact . | . . . . Slashing . | . . . . Piercing . | . . . . Sneak Attacks . | . . . . Combat Hostiles . | . . . . Follow-up Attacks . | . . . . Damage Inflicted 1569 | . . . 1569 Guns 489 | . . . 489 Cannons 1080 | . . . 1080 Explosions . | . . . . Melee . | . . . . Ramming . | . . . . Kinetic 1569 | . . . 1569 Thermal . | . . . . Explosive . | . . . . Electromagnetic . | . . . . Impact . | . . . . Slashing . | . . . . Piercing . | . . . . Highest Corruption . | . . . . Average Corruption . | . . . . Corruption Purged . | . . . . Corruption Blocked . | . . . . Overload Shots . | . . . . Overflow Damage 2 | . . . 2 Projectiles 2 | . . . 2 Explosions . | . . . . Melee . | . . . . Knockbacks 3 | . . . 3 Impact . | . . . . Kinetic 3 | . . . 3 Secondary . | . . . . Self-Inflicted Damage . | . . . . Shots . | . . . . Rammed . | . . . . Targets Rammed . | . . . . Kicked . | . . . . Crushed . | . . . . Highest Temperature 235 | . . . 235 Average Temperature 69 | . . . 69 Received Heat Transfer 627 | . . . 627 Siege Activations . | . . . . Martial Activations . | . . . . Shielding Activations . | . . . . Robots Disrupted . | . . . . Combat Hostiles . | . . . . Robots Corrupted . | . . . . Combat Hostiles . | . . . . Parts Fried . | . . . . Impact Corruptions . | . . . . Robots Melted . | . . . . Combat Hostiles . | . . . . Parts Melted 7 | . . . 7 Heat Transferred . | . . . . Parts Sabotaged . | . . . . Parts Stolen . | . . . . Parts Stripped . | . . . . Power Chain Reactions . | . . . . Alert | -11 -10 -10 -9 ------- Run | Yrd Mat Sub Scr Maximum Alert Level . | . . . . Low Security (%) 100 | 100 100 . . Level 1 . | . . . . Level 2 . | . . . . Level 3 . | . . . . Level 4 . | . . . . Level 5 . | . . . . High Security . | . . . . Max Security . | . . . . Peak Influence . | . . . . Initial . | . . . . Average . | . . . . Influence Increases . | . . . . Influence Decreases . | . . . . Squads Dispatched . | . . . . Investigation . | . . . . Extermination . | . . . . Reinforcement . | . . . . Assault . | . . . . Garrison . | . . . . Intercept . | . . . . Searches Triggered . | . . . . Construction Impeded . | . . . . Haulers Reinforced . | . . . . Active Scanning Responses . | . . . . Cargo Convoy Interrupts . | . . . . Stealth | -11 -10 -10 -9 --------- Run | Yrd Mat Sub Scr Distress Signals . | . . . . Communications Jammed . | . . . . Distress Signals . | . . . . Times Spotted 46 | . . . 46 Peak Tracking Total 7 | . . . 7 Tactical Retreats 1 | . . . 1 Traps | -11 -10 -10 -9 ------- Run | Yrd Mat Sub Scr Traps Triggered . | . . . . Indirectly . | . . . . Trap Hack Attempts . | . . . . Triggered . | . . . . Disarmed . | . . . . Reprogrammed . | . . . . Reused . | . . . . Traps Extracted . | . . . . Installed . | . . . . Triggered . | . . . . Machines | -11 -10 -10 -9 ---------- Run | Yrd Mat Sub Scr Machines Disabled . | . . . . Max in Single Turn . | . . . . Machines Repaired . | . . . . Machines Dismantled . | . . . . Machines Sabotaged . | . . . . Overloaded Fab Kills . | . . . . Hacking | -11 -10 -10 -9 --------- Run | Yrd Mat Sub Scr Machines Accessed 1 | . . . 1 Terminals . | . . . . Fabricators . | . . . . Repair Stations . | . . . . Recycling Units . | . . . . Scanalyzers . | . . . . Garrison Access . | . . . . Total Hacks 9 | . . . 9 Successful 9 | . . . 9 Failed . | . . . . Catastrophic . | . . . . Database Lockouts . | . . . . Manual . | . . . . Terminals . | . . . . Fabricators . | . . . . Repair Stations . | . . . . Recycling Units . | . . . . Scanalyzers . | . . . . Garrison Access . | . . . . Terminal Hacks 9 | . . . 9 Record 9 | . . . 9 Fabricator Hacks . | . . . . Repair Station Hacks . | . . . . Recycling Unit Hacks . | . . . . Scanalyzer . | . . . . Garrison Access Hacks . | . . . . Unauthorized Hacks . | . . . . Terminals . | . . . . Fabricators . | . . . . Repair Stations . | . . . . Recycling Units . | . . . . Scanalyzers . | . . . . Garrison Access . | . . . . Data Cores Recovered . | . . . . Used . | . . . . Hacking Detections . | . . . . Full Trace Events . | . . . . Feedback Events . | . . . . Feedback Blocked . | . . . . Robot Schematics Acquired . | . . . . Robots Built . | . . . . Authchips . | . . . . Time . | . . . . Total Robot Build Rating . | . . . . Part Schematics Acquired . | . . . . Parts Built . | . . . . Authchips . | . . . . Time . | . . . . Total Part Build Rating . | . . . . Parts Repaired . | . . . . Time . | . . . . Parts Recycled . | . . . . Recycled Matter . | . . . . Retrieved Matter . | . . . . Retrieved Components . | . . . . Parts Scanalyzed . | . . . . Part Schematics Acquired . | . . . . Parts Damaged . | . . . . Bothacking | -11 -10 -10 -9 ------------ Run | Yrd Mat Sub Scr Used RIF Installer . | . . . . Robots Hacked . | . . . . Non-combat . | . . . . Combat . | . . . . Robot Hacks Applied . | . . . . Relay Couplers Released . | . . . . Fabnet Peak Effective % . | . . . . Robots Rewired . | . . . . Allies Hacked . | . . . . Hacks Repelled . | . . . . Allies | -11 -10 -10 -9 -------- Run | Yrd Mat Sub Scr Total Allies . | . . . . Largest Group . | . . . . Highest-Rated Group . | . . . . Highest-Rated Ally . | . . . . Total Orders . | . . . . Ally Attacks . | . . . . Total Damage . | . . . . Kills . | . . . . Allies Corrupted . | . . . . Allies Melted 9 | . . . 9 Intel | -11 -10 -10 -9 ------- Run | Yrd Mat Sub Scr Active Infowar (turns) . | . . . . Robot Analysis Total . | . . . . Derelict Logs Recovered . | . . . . Drone Launches . | . . . . Drone Recoveries . | . . . . Exploration | -11 -10 -10 -9 ------------- Run | Yrd Mat Sub Scr Turns Passed 3544 | 65 182 628 2669 Spaces Moved 1320 | 47 58 41 1174 Core 38 | 15 . . 23 Treads 1282 | 32 58 41 1151 Legs . | . . . . Wheels . | . . . . Hover . | . . . . Flight . | . . . . Fastest Speed 50 | 50 160 160 145 Average Speed 164 | 124 160 160 166 Slowest Speed 300 | 160 160 160 300 Overloaded Moves . | . . . . Propulsion Burnouts . | . . . . Robots Hopped . | . . . . Potential Cave-ins . | . . . . Cave-ins Triggered . | . . . . Exploration Rate (%) 21 | 4 15 4 62 Regions Visited 3 Branch Regions 2 Pre-discovered Areas . | . . . . Known Exits Taken . | . . . . Unknown Exits Taken 3 | 1 1 1 . Scrap Searched 5 | . . . 5 Spaces Dug . | . . . . Terrain Destroyed 30 | . . . 30 Melee . | . . . . Projectile 30 | . . . 30 AOE . | . . . . Terrain Rammed . | . . . . Walls Destroyed . | . . . . Machines Disabled . | . . . . Actions | -11 -10 -10 -9 --------- Run | Yrd Mat Sub Scr Total 2606 | 53 144 604 1805 Wait 1168 | . 84 564 520 Move 1317 | 46 57 40 1174 Hop . | . . . . Pick Up 25 | 4 . . 21 Fast Attach 6 | . . . 6 Attach 14 | 3 . . 11 Detach 1 | . . . 1 Swap 3 | . . . 3 Drop 18 | . . . 18 Fire 54 | . 3 . 51 Melee . | . . . . Ram . | . . . . Kick . | . . . . Crush . | . . . . Escape Stasis . | . . . . Rewire . | . . . . Trap . | . . . . Miscellaneous . | . . . . Route ------- -11/Scrapyard -10/Materials -10/Subcaves -9/Scraptown (discovered 2 exits: Fac x2) History --------- Turn | Location | Event 5 | -11/Scrapyard | Discovered new exit (range 15) 66 | -11/Scrapyard | Entered Materials 220 | -10/Materials | Discovered new exit (range 6) 248 | -10/Materials | Entered Subcaves 249 | -10/Subcaves | Approached by a straggling Scientist 314 | -10/Subcaves | Build established: Mutant 854 | -10/Subcaves | Scientist uncovered a shortcut to Scraptown 876 | -10/Subcaves | Entered Scraptown 1094 | -9/Scraptown | Visited Spacefarers 1122 | -9/Scraptown | Visited Cave Peace 1426 | -9/Scraptown | Visited UFD Registry 1426 | -9/Scraptown | Registered with UFD as "Metalcell" 1471 | -9/Scraptown | Visited Research Penetration Think Tank 1553 | -9/Scraptown | Visited Junk Repository 1623 | -9/Scraptown | Visited Junk Repository 1675 | -9/Scraptown | Visited Derelict Rescue Squad 1696 | -9/Scraptown | Visited DA-N13 Charitable Foundation 1717 | -9/Scraptown | Found DCF Scrap (30 items) 1741 | -9/Scraptown | Visited Junk Cannon Lab 1823 | -9/Scraptown | Found Prototype Special Weapon 1824 | -9/Scraptown | Identified Junk Cannon 1876 | -9/Scraptown | Visited Scrap Suit Storage 1903 | -9/Scraptown | Visited Analyses Database 1930 | -9/Scraptown | Visited Modified Component R&D 2408 | -9/Scraptown | Met Optimus 2408 | -9/Scraptown | Accepted into 0bPrime 2808 | -9/Scraptown | Civil war broke out across Scraptown 2855 | -9/Scraptown | Lost 4 allies 3031 | -9/Scraptown | Identified exit to Factory 3075 | -9/Scraptown | Lost 6 allies 3152 | -9/Scraptown | Optimus destroyed in the chaos of civil war 3318 | -9/Scraptown | Visited TADAMA 3377 | -9/Scraptown | Core integrity fell below 50% 3426 | -9/Scraptown | Lost 7 allies 3535 | -9/Scraptown | Core integrity fell below 20% 3536 | -9/Scraptown | Lost 3 allies 3545 | -9/Scraptown | Destroyed by AW-DUJ(j) with Overtuned Pulse Rifle Last Messages --------------- UL-QP7(j) suffers critical hit (Blast). UL-QP7(j) destroyed. Slug penetrates O3-XU4(p). O3-XU4(p) destroyed. 1J-GDK(g): "Triborg not so powerful after all." Acquired 71 matter. 1Q-XE6(j) cannibalizes Scrap Suit to repair Mak. Microdissipator Network. Adv. Assault Cannon destroyed. 1J-GDK(g) destroyed. Gauss Cannon destroyed. HV Slug penetrates AW-DUJ(j). HV Slug penetrates Wall. Acquired 20 matter. 1Q-XE6(j) suffers critical hit (Burn). 1Q-XE6(j) destroyed. HV Slug penetrates Wall. AW-DUJ(j) cannibalizes Lgt. Ion Engine to repair Lgt. Deuterium Engine. Critical hit (Burn: +50). Map ----- +----------------------------------------------------+ | | | | | | | | | ?????????????????????????????????????????????????? | | ?????????????????????????????????????????????????? | | ?????????????????????????????????????????????????? | | ?????????????????????????????????????????????????? | | ?????????????????????????????????????????????????? | | ?????????????????????????????????????????????????? | | ?????????????????????????????????????????????????? | | ?????????????????????????????????????????????????? | | ?????????????????????????????????????????????????? | | ?????????????????????????????????????????????????? | | ???????????????????????#?????????????????????????? | | ?????????????????????## ?????????????????????????? | | ?????????????????????# #????????????????????????? | | ????????????????????##"!#????????????????????????? | | ????????????????????#[*=##??????